Cogmind - Beta 15 @@@ ROGUE MODE // 2025.05.15 @ 16:04:52 Player: Minty Result: Escaped! Performance ------------- Evolutions (9) 4500 Regions Visited (22) 4400 Robots Destroyed (227) 1135 Value Destroyed (10445) 10445 Prototype IDs (47) 940 Alien Tech Used (2) 400 Bonus (9950) 9950 TOTAL SCORE: 31770 Bonus ------- High Alert Combat Kills 1522 Follower Combat Kills 1655 Entered Garrisons 200 Network Hubs Disabled 200 Met Zhirov 300 Built Enhanced Grunts 300 A7 Reached Mainframe 300 Met R17 at Cetus 500 Met R17 at Research 2000 Win 3000 Friendly Fire -27 Cogmind --------- Core Integrity 1448/1600 Matter 52/300 Energy 189/190 System Corruption 0% Temperature Cool (2) Movement Flying (37) Location To Epsilon Eridani Parts ------- > --- POWER (3) -------- Light Quantum Reactor > --- PROPULSION (5) --- Nuclear Pulse Array Field Propulsion Array > --- UTILITY (13) ----- Experimental Coolant Injector Enhanced Optical Array Advanced Sensor Array Improved Targeting Computer Advanced Target Analyzer Improved Cloaking Device Graphene Brace Hacking Suite Experimental Hacking Suite Improved System Guard Improved System Guard > --- WEAPON (4) ------- (None) > --- INVENTORY (5) ---- Enhanced Biometal Leg Enhanced Biometal Leg Advanced Cooling System Improved Matter Compressor (300) Long-range Tractor Beam Peak State ------------ > --- POWER ------------ Particle Reactor Quantum Reactor > --- PROPULSION ------- Medium Treads Advanced Heavy Treads Advanced Heavy Treads > --- UTILITY ---------- Advanced Heat Sink Experimental Cooling System Experimental Coolant Injector Large Storage Unit Advanced Signal Interpreter Improved Targeting Computer Improved Targeting Computer Layered Medium Armor Plating Layered Medium Armor Plating Graphene Brace Advanced Hardlight Generator Advanced Shield Generator > --- WEAPON ----------- Advanced Plasma Rifle Heavy Wave Gun Nova Cannon Nova Cannon > --- INVENTORY -------- Advanced Heavy Treads Enhanced Biometal Leg Enhanced Biometal Leg Experimental Power Amplifier Advanced Heat Sink Improved Matter Compressor Advanced Sensor Array Advanced Target Analyzer Advanced Transmission Jammer Improved Hardlight Generator Long-range Tractor Beam Railgun Railgun Micro-nuke Launcher [Rating: 157] Favorites ----------- Power F-cell Engine Engine F-cell Engine Power Core Neutrino Core Reactor Heavy Antimatter Reactor Propulsion Advanced Myomer Leg Treads Light Treads Leg Advanced Myomer Leg Wheel Armored Huge Wheel Flight Unit Field Propulsion Drive Utility Graphene Brace Device Graphene Brace Storage Medium Storage Unit Processor Improved Targeting Computer Hackware Advanced System Shield Protection Improved Light Armor Plating Weapon KE Penetrator Energy Gun Heavy Laser Energy Cannon Nova Cannon Ballistic Gun KE Penetrator Ballistic Cannon Light Cannon Launcher Micro-nuke Launcher Special Melee Weapon Improved Datajack Build | -11 -10 -9 -8 -7 -6 -6 -6 -6 -6 -6 -6 -5 -5 -5 -5 -4 -4 -4 -4 -3 -2 -1 ------- Run | Yrd Mat Mat Mat Fac Fac Was Fac Ext Cet Arc Hub Fac Upp Upp Zhi Pro Fac Gar Fac Res Res Acc Slots Evolved 18 | . . 2 2 2 2 . . . . . . 2 . . . . 2 . . 2 2 2 Power 2 | . . . . . . . . . . . . . . . . . 1 . . . . 1 Propulsion 3 | . . 1 . . . . . . . . . 1 . . . . . . . 1 . . Utility 11 | . . . 2 2 2 . . . . . . 1 . . . . . . . 1 2 1 Weapon 2 | . . 1 . . . . . . . . . . . . . . 1 . . . . . Parts Attached 252 | . 11 11 18 7 24 . 9 10 9 2 13 18 1 3 8 5 22 11 15 29 17 9 Power 24 | . 1 2 2 . . . 3 . . . . 2 . . 1 . 2 . 3 3 4 1 Engine 11 | . 1 2 2 . . . 3 . . . . 2 . . . . 1 . . . . . Core 3 | . . . . . . . . . . . . . . . . . 1 . 1 1 . . Reactor 10 | . . . . . . . . . . . . . . . 1 . . . 2 2 4 1 Propulsion 49 | . 2 2 4 1 4 . . 1 2 . 4 6 . . 3 1 3 2 3 6 3 2 Treads 16 | . 2 1 2 . . . . . 1 . 4 . . . . . 1 . . 4 1 . Leg 19 | . . . . . 3 . . 1 1 . . . . . 3 1 2 2 3 1 2 . Wheel 5 | . . . 2 1 1 . . . . . . . . . . . . . . 1 . . Hover . | . . . . . . . . . . . . . . . . . . . . . . . Flight 9 | . . 1 . . . . . . . . . 6 . . . . . . . . . 2 Utility 104 | . 2 1 5 1 13 . 2 8 4 2 4 8 1 1 2 1 11 5 6 15 6 6 Device 52 | . 2 . 2 1 6 . 1 5 . 2 . 3 . . 1 . 7 2 6 9 4 1 Storage 5 | . . 1 . . . . 1 . . . . . . . . 1 . . . 2 . . Processor 21 | . . . 1 . 3 . . . . . 1 5 1 . . . 2 2 . 2 . 4 Hackware 6 | . . . . . 1 . . . . . 2 . . . . . 1 . . . 1 1 Protection 20 | . . . 2 . 3 . . 3 4 . 1 . . 1 1 . 1 1 . 2 1 . Artifact . | . . . . . . . . . . . . . . . . . . . . . . . Weapon 75 | . 6 6 7 5 7 . 4 1 3 . 5 2 . 2 2 3 6 4 3 5 4 . Energy Gun 24 | . 1 1 3 3 5 . . . 2 . 1 . . . . . 3 1 . 2 2 . Energy Cannon 13 | . . 1 . 1 1 . . 1 . . 2 2 . . 2 . . . . 2 1 . Ballistic Gun 26 | . 3 3 4 1 . . 2 . 1 . 1 . . . . 3 1 3 3 1 . . Ballistic Cannon 9 | . 2 1 . . 1 . 1 . . . 1 . . 2 . . 1 . . . . . Launcher 2 | . . . . . . . 1 . . . . . . . . . . . . . 1 . Special Weapon . | . . . . . . . . . . . . . . . . . . . . . . . Impact Weapon . | . . . . . . . . . . . . . . . . . . . . . . . Slashing Weapon . | . . . . . . . . . . . . . . . . . . . . . . . Piercing Weapon . | . . . . . . . . . . . . . . . . . . . . . . . Special Melee Weapon 1 | . . . . . . . . . . . . . . . . . 1 . . . . . Unidentified Prototypes 35 | . . 6 1 2 2 . 2 . 5 . 2 1 . . 5 . . . 1 7 1 . Corrupted Parts 12 | . . . 2 . 1 . . 2 3 . 1 . . . . 2 . 1 . . . . System Corruption 61 | . . . 10 . 5 . . 6 21 . 7 . . . . 5 . 7 . . . . Parts Lost 83 | . . . 10 1 5 . . . 1 2 13 6 . . . 11 6 . 3 4 21 . Power 8 | . . . 1 . . . . . . . 1 . . . . . 1 . 1 1 3 . Propulsion 20 | . . . 5 . 1 . . . . . 3 4 . . . 3 1 . . . 3 . Utility 33 | . . . 1 . 2 . . . . 1 6 2 . . . 4 4 . 2 2 9 . Weapon 22 | . . . 3 1 2 . . . 1 1 3 . . . . 4 . . . 1 6 . Highest Loss Streak 11 | . . . 5 1 3 . . . 1 2 6 4 . . . 8 2 . 2 3 11 . To Critical Strikes . | . . . . . . . . . . . . . . . . . . . . . . . Average Backups 6 | . 7 8 8 8 6 5 4 5 4 4 4 4 4 5 4 5 4 5 4 5 12 7 Power . | . . . . 1 1 1 1 2 2 2 2 1 . . . 1 . . . . . . Propulsion . | . 3 2 . 1 . . . . . . . . . . . . . . . 1 2 . Utility 3 | . . 2 4 5 3 1 . 1 . 1 1 1 2 3 2 2 3 4 3 2 7 5 Weapon 1 | . 2 3 2 . 1 3 2 2 2 1 . 1 2 2 . . . . . 1 2 . Tool/Special . | . . . . . . . . . . . . . . . . . . . . . . . Unused Backups 21 | . 2 7 . . 2 . 2 . . . . . . 1 . . . . 1 4 1 1 Power 3 | . 2 1 . . . . . . . . . . . . . . . . . . . . Propulsion 4 | . . 1 . . . . . . . . . . . . . . . . . 3 . . Utility 9 | . . 2 . . 1 . 1 . . . . . . 1 . . . . 1 1 1 1 Weapon 5 | . . 3 . . 1 . 1 . . . . . . . . . . . . . . . Tool/Special . | . . . . . . . . . . . . . . . . . . . . . . . Average Slot Usage (%) 86 | . 97 99 80 74 82 93 94 100 84 84 78 39 52 58 78 91 84 99 99 85 82 46 Engine 4 | . 14 11 8 7 6 6 6 6 6 6 6 1 5 5 2 . 4 5 . . . . Core 1 | . . . . . . . . . . . . . . . . . 2 5 2 4 1 . Reactor 1 | . . . . . . . . . . . . . . . 2 5 1 . 5 2 5 . Treads 5 | . 4 32 11 6 1 . . . 1 6 9 1 . . . . 1 . . 9 10 2 Leg 10 | . 23 . . . 5 20 20 20 16 6 1 . . . 9 19 14 20 21 1 . 6 Wheel 1 | . . . 7 5 5 . . . . . . . . . . . . . . 1 . . Device 19 | . 12 11 11 22 23 26 26 28 31 25 12 7 5 5 9 11 21 17 21 28 25 12 Storage 2 | . 14 11 9 7 2 . 1 3 . . . . . . . 3 . . . . 4 2 Processor 10 | . . . 1 . 3 6 6 6 6 1 . 10 29 35 30 23 15 19 17 13 11 9 Hackware 2 | . . . . . 3 6 6 2 . . 9 4 . . . . 4 5 2 . . 6 Protection 6 | . . . 5 . 9 13 11 10 14 24 24 2 . . 6 10 2 4 5 1 5 . Energy Gun 3 | . 7 2 5 13 8 . . . 3 9 4 . . . . . 7 1 . 1 6 2 Energy Cannon 2 | . . 1 . . 3 . 1 6 . . 7 . . . 6 1 . . . 2 7 1 Ballistic Gun 8 | . 12 13 20 7 2 6 3 10 . . . 1 . . . 10 2 19 21 12 1 1 Ballistic Cannon 2 | . 6 16 . . 1 6 9 1 . . . 1 . . . . 3 . . . . . Peak Build Rating 157 | . 10 20 38 68 78 61 70 74 110 112 105 57 47 60 95 95 111 117 119 143 157 105 Average Rating 78 | . 8 16 25 62 62 60 64 71 71 102 87 31 40 46 74 81 94 113 114 123 142 89 On Entrance 63 | 6 6 9 20 37 68 61 61 70 73 102 94 27 40 47 46 95 52 102 114 102 139 97 Naked Turns . | . . . . . . . . . . . . . . . . . . . . . . . Heaviest Build 129 | 11 17 29 55 46 70 39 47 50 56 68 63 21 13 37 48 47 63 56 73 113 129 46 Greatest Support 168 | 20 40 60 60 40 48 48 48 48 80 80 108 27 16 13 90 115 105 110 110 168 168 88 Greatest Overweight (x) 7 | . . . 3 1 2 . . 1 1 . 7 4 . 2 1 . . . . 1 1 . Average Overweight (x) . | . . . . . . . . . . . . . . . . . . . . . . . Largest Inventory Capacity 15 | . 8 10 10 10 10 5 5 5 5 5 5 5 5 5 5 5 5 5 5 15 15 15 Average Capacity 6 | . 8 9 10 10 7 5 5 5 5 5 5 5 5 5 5 5 5 5 5 7 15 9 Most Carried 15 | . 8 10 10 10 10 5 5 5 5 5 5 5 5 5 5 5 5 5 5 15 15 11 Average Carried 6 | . 7 8 9 9 6 5 4 5 4 4 4 4 4 4 4 4 4 5 4 5 13 7 Final Capacity 15 | 8 8 10 10 10 5 5 5 5 5 5 5 5 5 5 5 5 5 5 5 15 15 5 Final Carried 15 | 6 7 10 10 10 5 5 5 5 5 5 4 4 5 5 5 5 5 5 4 15 10 5 Class Distribution -------------------- 32% | Scavenger-Tank 15% | Mutant 13% | Scavenger-Gunner 9% | Gunner 7% | Scavenger-Skirmisher 6% | Commander-Gunner 6% | Scavenger-Mutant Dominant Class ---------------- Mutant | -10/Materials Gunner | -9/Materials Gunner | -8/Materials Scavenger-Skirmisher | -7/Factory Scavenger-Tank | -6/Factory Scavenger-Tank | -6/Waste Scavenger-Tank | -6/Factory Scavenger-Tank | -6/Extension Scavenger-Mutant | -6/Cetus Scavenger-Mutant | -6/Archives Scavenger-Tank | -6/Hub_04(d) Mutant | -5/Factory Mutant | -5/Upper Caves Mutant | -5/Upper Caves Mutant | -5/Zhirov Scavenger-Tank | -4/Proximity Caves Mutant | -4/Factory Scavenger-Gunner | -4/Garrison Scavenger-Gunner | -4/Factory Scavenger-Tank | -3/Research Scavenger-Tank | -2/Research Hacker-Mutant | -1/Access Resources | -11 -10 -9 -8 -7 -6 -6 -6 -6 -6 -6 -6 -5 -5 -5 -5 -4 -4 -4 -4 -3 -2 -1 ----------- Run | Yrd Mat Mat Mat Fac Fac Was Fac Ext Cet Arc Hub Fac Upp Upp Zhi Pro Fac Gar Fac Res Res Acc Matter Collected 8955 | 200 453 899 512 276 495 . 489 502 285 . 524 30 66 234 . 368 573 322 1081 1160 415 71 Remotely 813 | . . . . . . . . . . . . . . . . . . . . 813 . . Salvage Created 10194 | . 564 1071 755 374 690 . 335 549 141 77 1401 20 . . . 290 691 160 841 615 1549 71 Parts 476 | . 27 75 44 15 37 . 8 32 6 5 47 . . . . 15 22 7 53 12 70 1 Haulers Intercepted 15 | . 2 3 . . 1 . 2 . . . 3 . . . . . 1 . . 2 1 . Recyclers Shooed 7 | . . . 1 . . . 1 2 . . 1 . . . . . . . 2 . . . Parts Field Recycled . | . . . . . . . . . . . . . . . . . . . . . . . Retrieved Matter . | . . . . . . . . . . . . . . . . . . . . . . . Parts Self-Destructed 13 | . . . . . . . . . . . . . . 1 . 12 . . . . . . Prevented 6 | . . . . . . . . . . . . . . 3 . 3 . . . . . . Kills | -11 -10 -9 -8 -7 -6 -6 -6 -6 -6 -6 -6 -5 -5 -5 -5 -4 -4 -4 -4 -3 -2 -1 ------- Run | Yrd Mat Mat Mat Fac Fac Was Fac Ext Cet Arc Hub Fac Upp Upp Zhi Pro Fac Gar Fac Res Res Acc Combat Hostiles Destroyed 168 | . 11 25 13 7 11 . 1 8 2 . 28 . . . . 7 14 1 9 3 27 1 Melee 1 | . . . . . . . . . . . . . . . . . . . . 1 . . Guns 79 | . 8 12 13 6 8 . . 3 . . 2 . . . . 2 9 1 8 2 4 1 Cannons 47 | . 3 13 . . 1 . . 5 1 . 5 . . . . 4 4 . . . 11 . AOE 29 | . . . . . . . 1 . . . 18 . . . . . . . 1 . 9 . Classes Destroyed 18 | . 6 5 2 1 . . . 2 . . . . . . . . . . 1 . 1 . Worker 10 | . . 4 1 . . . . . . . 2 1 . . . . . . 1 . 1 . Builder 12 | . 1 1 1 . . . 1 . . . 3 . . . . . . . 5 . . . Hauler 15 | . 2 3 . . 1 . 2 . . . 3 . . . . . 1 . . 2 1 . Recycler 8 | . 2 1 . . . . 1 . . . 1 . . . . . . . 1 2 . . Mechanic 3 | . . 1 . . 1 . . . . . . . . . . . 1 . . . . . Operator 5 | . . 1 . 1 . . . 1 . . 1 . . . . . 1 . . . . . Watcher 5 | . 1 1 . . . . . . 1 . 1 . . . . . . . . . 1 . Swarmer 36 | . 3 9 . . 3 . . . . . 3 . . . . 5 5 . . 1 7 . Saboteur 1 | . . . . . . . . . . . . . . . . . . . . . 1 . Grunt 72 | . 8 12 7 6 4 . . 4 . . 16 . . . . 2 4 . 2 1 6 . Brawler 2 | . . . . . . . . . . . . . . . . . . . 2 . . . Duelist 3 | . . 1 . . . . . . . . 1 . . . . . . . . . . 1 Sentry 19 | . . 3 2 . 1 . 1 2 . . 4 . . . . . 2 . . 1 3 . Specialist 2 | . . . 2 . . . . . . . . . . . . . . . . . . . Hunter 11 | . . . . . . . . 1 . . 4 . . . . . . . 2 . 4 . Programmer 16 | . . . . 1 2 . . . . . . . . . . . 3 1 4 . 5 . Heavy 3 | . . . 2 . 1 . . . . . . . . . . . . . . . . . Behemoth 2 | . . . . . . . . 1 . . . . . . . . . . . . 1 . Cetus Guard 2 | . . . . . . . . . 2 . . . . . . . . . . . . . Best Kill Streak 15 | . 9 10 3 2 3 . 2 2 2 . 15 1 . . . 4 6 1 5 1 9 1 Combat Bots Only 10 | . 6 9 3 2 3 . 1 2 2 . 10 . . . . 4 5 1 2 1 8 1 Max Kills in Single Turn 8 | . 2 2 2 1 1 . 1 1 1 . 8 1 . . . 1 2 1 4 1 3 1 Gunslinging 1 | . . 1 . . . . . . . . . . . . . . 1 . . . . . Exploded 7 | . . . . . . . 1 . . . 7 . . . . . . . 1 . 3 . Melee 1 | . . . . . . . . . . . . . . . . . . . . 1 . . Uniques/NPCs Destroyed . | . . . . . . . . . . . . . . . . . . . . . . . Combat | -11 -10 -9 -8 -7 -6 -6 -6 -6 -6 -6 -6 -5 -5 -5 -5 -4 -4 -4 -4 -3 -2 -1 -------- Run | Yrd Mat Mat Mat Fac Fac Was Fac Ext Cet Arc Hub Fac Upp Upp Zhi Pro Fac Gar Fac Res Res Acc Hostile Shots Fired 2026 | . 72 112 134 52 153 . 18 79 27 . 340 59 11 . . 170 127 . 221 49 356 46 Missed 641 | . 16 34 27 13 51 . 6 24 9 . 104 29 7 . . 64 26 . 78 15 109 29 Hits 1385 | . 56 78 107 39 102 . 12 55 18 . 236 30 4 . . 106 101 . 143 34 247 17 Melee 8 | . . . . . . . . . . . 3 . . . . . . . . . . 5 Projectile 1377 | . 56 78 107 39 102 . 12 55 18 . 233 30 4 . . 106 101 . 143 34 247 12 AOE 1 | . . . . . . . . . . . 1 . . . . . . . . . . . Critical Strikes 60 | . 1 1 7 2 4 . . . 4 . 8 . . . . 7 6 . 10 1 7 2 Actively Blocked 52 | . . . 1 2 4 . . . 4 . 8 . . . . 7 6 . 10 1 7 2 Part Disruptions 4 | . . . . . 1 . . . . . . 1 . . . . . . . . 2 . Damage Taken 23105 | . 533 804 2206 601 1803 . 63 519 333 642 3206 705 81 . . 2123 1723 . 1865 651 4761 486 Core 2861 | . 92 88 325 47 102 . 5 59 12 . 167 319 61 . . 555 209 . 254 74 340 152 Absorbed by Shields 2014 | . . . . . . . . 205 164 . . . . . . . . . 438 24 1183 . Redirected to Shielding 264 | . . . . . . . . . . . . . . . . 264 . . . . . . Ignored by Resistances 969 | . . . . . . . . . . . . . . . . . 254 . 622 93 . . Regen/Repaired (Parts) 526 | . 23 96 70 . . . . . . . . 7 . . . . 183 . 147 . . . Core Remaining (%) 68 | 100 63 78 40 93 . . . . . . 59 . . . . 6 . . 53 94 76 90 Volleys Fired 648 | . 52 72 49 28 59 . 29 36 14 4 57 4 . . 2 28 65 15 39 25 65 5 Largest 4 | . 2 3 3 3 3 . 3 3 2 2 3 1 . . 2 3 4 4 4 4 4 3 Hottest 402 | . 85 154 124 166 207 . 135 195 165 160 315 81 . . 176 176 264 264 140 324 402 213 Shots Fired 1579 | . 104 211 135 72 103 . 42 89 15 6 97 4 . . 4 62 136 60 153 83 192 11 Gun 1051 | . 84 91 135 63 75 . 5 48 2 6 30 . . . . 39 94 60 153 69 90 7 Cannon 510 | . 20 120 . 9 28 . 37 41 11 . 61 4 . . 4 23 42 . . 14 92 4 Launcher 18 | . . . . . . . . . 2 . 6 . . . . . . . . . 10 . Special . | . . . . . . . . . . . . . . . . . . . . . . . Kinetic 951 | . 71 190 111 22 57 . 33 52 . . 7 . . . . 39 64 55 153 64 29 4 Thermal 450 | . 33 21 3 37 34 . . 7 13 6 51 . . . . . 72 5 . 19 142 7 Explosive 18 | . . . . . . . . . 2 . 6 . . . . . . . . . 10 . Electromagnetic 160 | . . . 21 13 12 . 9 30 . . 33 4 . . 4 23 . . . . 11 . Robot Hit Streak 14 | . 6 8 12 8 14 . 10 7 6 5 10 3 . . 3 7 9 12 6 13 10 10 Robot Miss Streak 14 | . 8 4 4 3 4 . 14 5 4 1 7 . . . 1 6 5 1 6 7 3 2 Penetration Max 1 | . . . . . . . . . . . . . . . . . 1 1 1 . . . Secondary Targets 19 | . . 4 5 1 1 . . . . . . . . . . 1 5 . 2 . . . Max Gunslinging Chain 2 | . . 1 1 1 1 . . . . . . . . . . 1 2 . 1 . . . Shots Hit Robots 896 | . 54 106 96 45 69 . 22 41 10 5 60 3 . . 3 30 75 22 79 60 106 10 Core Hits 546 | . 23 44 37 15 26 . 15 22 36 4 131 10 . . . 17 30 16 34 21 63 2 Critical Kills 10 | . 1 . . . . . . . 1 . 1 . . . . . . 1 4 . 2 . Critical Parts Destroyed 7 | . . . . . . . . . . . . . . . . . . 3 3 1 . . Critical Strikes 43 | . 3 6 . 5 5 . . . 1 . 1 . . . . . 6 4 7 1 4 . Burn 15 | . 1 1 . 4 3 . . . . . . . . . . . 4 . . . 2 . Meltdown 4 | . . . . . . . . . 1 . 1 . . . . . . . . . 2 . Destroy 13 | . 1 . . . . . . . . . . . . . . . . 4 7 1 . . Blast 10 | . 1 5 . . 2 . . . . . . . . . . . 2 . . . . . Corrupt 1 | . . . . 1 . . . . . . . . . . . . . . . . . . Melee Attacks 2 | . . . . . . . . . . . . . . . . . 2 . . . . . Impact . | . . . . . . . . . . . . . . . . . . . . . . . Slashing . | . . . . . . . . . . . . . . . . . . . . . . . Piercing . | . . . . . . . . . . . . . . . . . . . . . . . Sneak Attacks 1 | . . . . . . . . . . . . . . . . . 1 . . . . . Combat Hostiles . | . . . . . . . . . . . . . . . . . . . . . . . Follow-up Attacks . | . . . . . . . . . . . . . . . . . . . . . . . Damage Inflicted 31566 | . 858 1921 1680 926 1832 . 914 1173 779 166 5724 230 . . 96 643 2332 792 3161 1783 6232 324 Guns 14048 | . 690 834 1590 747 1064 . 41 631 17 166 535 . . . . 308 1345 623 2507 1314 1467 169 Cannons 9213 | . 161 1082 . 179 763 . 731 484 268 . 1253 93 . . 96 319 977 . . 431 2221 155 Explosions 7916 | . . . 90 . . . 61 34 494 . 3915 137 . . . . . . 641 . 2544 . Melee . | . . . . . . . . . . . . . . . . . . . . . . . Ramming 389 | . 7 5 . . 5 . 81 24 . . 21 . . . . 16 10 169 13 38 . . Kinetic 12522 | . 498 1688 1264 279 1075 . 637 636 . . 98 . . . . 308 1210 623 2507 1173 418 108 Thermal 9021 | . 353 228 139 426 497 . 61 185 285 166 1088 . . . . . 1112 . 597 572 3096 216 Explosive 6888 | . . . . . . . . . 494 . 3806 . . . . . . . 44 . 2544 . Electromagnetic 2746 | . . . 277 221 255 . 135 328 . . 711 230 . . 96 319 . . . . 174 . Impact . | . . . . . . . . . . . . . . . . . . . . . . . Slashing . | . . . . . . . . . . . . . . . . . . . . . . . Piercing . | . . . . . . . . . . . . . . . . . . . . . . . Highest Corruption 53 | . . . 10 2 8 25 25 32 53 53 46 . . . . 5 3 10 11 . 20 1 Average Corruption 16 | . . . 8 1 5 19 25 28 37 49 41 . . . . 4 2 4 10 . 16 1 Corruption Purged 14 | . . . . . . . . . . 11 3 . . . . . . . . . . . Corruption Blocked . | . . . . . . . . . . . . . . . . . . . . . . . Effects 283 | . . . 2 4 17 10 28 45 36 10 40 . . . . 11 4 38 23 . 15 . Message Errors 64 | . . . . . 6 2 4 13 7 3 8 . . . . 3 1 7 8 . 2 . Matter Fused 62 | . . . 1 2 2 3 10 9 10 3 6 . . . . 1 2 9 1 . 3 . Heat Flow Errors 35 | . . . . 1 . . 5 2 6 . 5 . . . . 1 1 8 3 . 3 . Energy Discharges 27 | . . . 1 . 1 . 4 3 4 1 3 . . . . . . 6 3 . 1 . Parts Rejected 9 | . . . . . 2 1 . . 2 . . . . . . 2 . . . . 2 . Parts Fused 5 | . . . . . . . . 3 . . . . . . . 1 . . 1 . . . Data Loss (minor) 24 | . . . . . 2 2 1 6 1 1 2 . . . . . . 4 3 . 2 . Data Loss (major) 10 | . . . . . 1 . . 1 2 . 3 . . . . 1 . 2 . . . . Misfires 9 | . . . . 1 2 . 1 . 1 . 1 . . . . 1 . 1 1 . . . Alerts 3 | . . . . . . 1 . 1 . 1 . . . . . . . . . . . . Misdirections 7 | . . . . . . 1 . 3 . . 2 . . . . . . . 1 . . . Weapon Failures 28 | . . . . . 1 . 3 4 3 1 10 . . . . 1 . 1 2 . 2 . Overload Shots 4 | . . . . . . . . . . . 4 . . . . . . . . . . . Overflow Damage 476 | . . 25 . . 63 . 14 4 . . 73 . . . . 31 2 4 . . 236 24 Projectiles 339 | . . 25 . . 63 . 14 . . . 27 . . . . 31 2 . . . 153 24 Explosions 133 | . . . . . . . . 4 . . 46 . . . . . . . . . 83 . Melee 4 | . . . . . . . . . . . . . . . . . . 4 . . . . Knockbacks 21 | . 1 2 . . 5 . 5 . . . 1 . . . . . 7 . . . . . Impact . | . . . . . . . . . . . . . . . . . . . . . . . Kinetic 19 | . 1 2 . . 3 . 5 . . . 1 . . . . . 7 . . . . . Secondary 2 | . . . . . 2 . . . . . . . . . . . . . . . . . Self-Inflicted Damage 379 | . . . . . . . . . . . 181 73 . . . . . . . . 125 . Shots 11 | . . . . . . . . . . . 6 2 . . . . . . . . 3 . Rammed 18 | . 3 2 . . . . . . . . 2 . . . . . . . . 11 . . Targets Rammed 68 | . 3 2 . . 1 . 13 2 . . 2 . . . . 3 1 27 2 12 . . Kicked 49 | . . . . . 1 . 13 2 . . . . . . . 3 1 27 2 . . . Crushed 1 | . . . . . . . . . . . . . . . . . . . . 1 . . Highest Temperature 563 | . 20 231 563 378 306 . 336 93 237 54 408 50 . . 162 106 346 269 423 314 204 62 Average Temperature 120 | . 6 102 247 84 76 . 135 43 77 23 135 21 . . 86 77 132 75 152 92 91 33 Received Heat Transfer 3896 | . 159 246 675 279 213 . . 115 . . 612 180 9 . . 222 378 . 332 131 345 . Effects 29 | . . 1 11 . . . . . . . 7 . . . . . . . 9 1 . . Shutdowns 2 | . . . 2 . . . . . . . . . . . . . . . . . . . Energy Bleed 6 | . . . 2 . . . . . . . 1 . . . . . . . 3 . . . Interference 14 | . . 1 3 . . . . . . . 5 . . . . . . . 5 . . . Matter Decay 2 | . . . 1 . . . . . . . . . . . . . . . . 1 . . Short Circuit 1 | . . . 1 . . . . . . . . . . . . . . . . . . . Damage (minor) 3 | . . . 1 . . . . . . . 1 . . . . . . . 1 . . . Damage (major) 1 | . . . 1 . . . . . . . . . . . . . . . . . . . Siege Activations . | . . . . . . . . . . . . . . . . . . . . . . . Martial Activations . | . . . . . . . . . . . . . . . . . . . . . . . Shielding Activations 1 | . . . . . . . . . . . . . . . . . 1 . . . . . Total Turns 3 | . . . . . . . . . . . . . . . . . 3 . . . . . Longest Duration 3 | . . . . . . . . . . . . . . . . . 3 . . . . . Robots Disrupted . | . . . . . . . . . . . . . . . . . . . . . . . Combat Hostiles . | . . . . . . . . . . . . . . . . . . . . . . . Robots Corrupted 4 | . . . . 1 . . . . . . 2 . . . . 1 . . . . . . Combat Hostiles 4 | . . . . 1 . . . . . . 2 . . . . 1 . . . . . . Parts Fried 18 | . . . 3 3 1 . . 1 . . 5 . . . . 5 . . . . . . Impact Corruptions 1 | . . . . . . . . . . . . . . . . . . 1 . . . . Robots Melted 8 | . . . . . 2 . . . 1 . 1 . . . . . 1 . . . 3 . Combat Hostiles 8 | . . . . . 2 . . . 1 . 1 . . . . . 1 . . . 3 . Parts Melted 26 | . 1 . . 3 4 . . . . 2 1 . . . . . 6 . . 2 6 1 Heat Transferred 13107 | . 925 555 161 1147 1147 . 50 250 369 185 1435 . . . . . 2216 . 400 631 3414 222 Parts Sabotaged 3 | . . . . . . . . . . . 3 . . . . . . . . . . . Parts Stolen . | . . . . . . . . . . . . . . . . . . . . . . . Parts Stripped . | . . . . . . . . . . . . . . . . . . . . . . . Power Chain Reactions 5 | . . . 1 . . . . 1 . . 2 1 . . . . . . . . . . Alert | -11 -10 -9 -8 -7 -6 -6 -6 -6 -6 -6 -6 -5 -5 -5 -5 -4 -4 -4 -4 -3 -2 -1 ------- Run | Yrd Mat Mat Mat Fac Fac Was Fac Ext Cet Arc Hub Fac Upp Upp Zhi Pro Fac Gar Fac Res Res Acc Maximum Alert Level 5 | . 1 1 1 1 . . . 1 1 1 2 1 . . . . 3 5 4 3 3 2 Low Security (%) 40 | . 89 43 70 85 100 100 100 66 73 39 52 8 . . . . . . . . . . Level 1 18 | . 10 56 29 14 . . . 33 26 60 13 91 . . . . . . . . 65 . Level 2 9 | . . . . . . . . . . . 34 . . . . . . 1 . 66 14 100 Level 3 21 | . . . . . . . . . . . . . . . . . 100 44 70 33 19 . Level 4 9 | . . . . . . . . . . . . . . . . . . 49 29 . . . Level 5 . | . . . . . . . . . . . . . . . . . . 4 . . . . High Security . | . . . . . . . . . . . . . . . . . . . . . . . Max Security . | . . . . . . . . . . . . . . . . . . . . . . . Peak Influence 1650 | . 226 331 252 235 162 54 144 278 247 372 644 285 . . . . 1021 1650 1582 825 1040 676 Initial 922 | . . 85 136 105 110 54 . 54 136 62 116 285 . . . . 922 680 865 825 307 576 Average 462 | . 74 199 179 103 68 20 20 127 171 225 293 244 . . . . 874 1146 1084 667 424 585 Influence Increases 10500 | . 370 763 386 346 438 . 220 532 328 410 836 207 75 . . 285 1668 990 1191 112 1143 200 Destroy 0b10 Robot/C 4120 | . 220 500 260 140 220 . 20 300 160 200 560 . . . . 140 360 40 380 60 540 20 Destroy 0b10 Robot/NC 330 | . 30 65 10 5 10 . 20 15 10 10 55 5 . . . . 15 5 40 20 15 . Destroy Leader 832 | . 56 108 80 40 62 . 14 42 . . 128 . . . . 10 72 . 82 24 114 . Allied During Kill 533 | . . . . . . . . 102 110 165 . . . . . . 9 4 143 . . . Successful Hack 222 | . 3 10 . . 32 . . 15 . . . 22 . . . . 44 21 . . . 75 Select Force Hacks 30 | . . . . . . . 30 . . . . . . . . . . . . . . . Disable Machine 735 | . . 60 . . 30 . 90 45 15 30 30 15 . . . . 60 15 255 . 90 . Anti-Garrison Action 1050 | . . . . . . . . . . . . . . . . . . 900 . . 150 . Destroy Structure 763 | . 1 5 6 1 9 . 46 13 33 5 63 . . . . . 118 5 216 8 234 . Advance Influence 900 | . . . . . . . . . . . . . . . . . 900 . . . . . Partial Spotted 30 | . . . . . . . . . . . . 30 . . . . . . . . . . Lose Combat Pursuer 855 | . 60 15 30 60 75 . . . . . . 135 75 . . 135 90 . 75 . . 105 Active Sensor Use 100 | . . . . 100 . . . . . . . . . . . . . . . . . . Influence Decreases 9824 | . 168 641 478 351 509 156 108 399 417 234 584 529 208 85 44 249 732 312 1269 1137 728 486 Entered New Map 4058 | . . 117 188 127 117 102 . 58 109 94 216 299 98 25 44 . 14 292 785 747 240 386 Time Decay 4226 | . 168 374 190 214 362 54 108 301 278 80 238 150 110 60 . 199 318 . 294 350 278 100 Search Patrol Dispatched 300 | . . . . . . . . . . . . . . . . . 300 . . . . . Lost Part 750 | . . . 100 10 30 . . . 10 20 130 60 . . . 50 60 . 30 40 210 . Lost Ally 340 | . . . . . . . . 40 20 40 . 20 . . . . 40 20 160 . . . Purge Threat 150 | . . 150 . . . . . . . . . . . . . . . . . . . . Squads Dispatched 80 | . 3 3 5 9 6 . 4 2 . . 14 4 . . . . 5 . 7 7 7 4 Investigation 21 | . 1 1 1 4 . . 2 . . . 3 3 . . . . 3 . 1 1 . 1 Extermination 8 | . . . . 1 2 . . . . . 1 . . . . . 1 . 1 . 1 1 Reinforcement 37 | . 2 2 4 2 3 . 2 2 . . 4 1 . . . . 1 . 4 6 2 2 Assault 6 | . . . . . . . . . . . 3 . . . . . . . 1 . 2 . Garrison 8 | . . . . 2 1 . . . . . 3 . . . . . . . . . 2 . Intercept . | . . . . . . . . . . . . . . . . . . . . . . . Searches Triggered 2 | . . . . . . . . . . . . . . . . . 2 . . . . . Construction Impeded 5 | . . . . . 1 . 1 1 . . . . . . . . . . 2 . . . Haulers Reinforced 9 | . . . . . . . 1 . . . 2 . . . . . . . 1 3 2 . Active Scanning Responses 1 | . . . . 1 . . . . . . . . . . . . . . . . . . Cargo Convoy Interrupts . | . . . . . . . . . . . . . . . . . . . . . . . Stealth | -11 -10 -9 -8 -7 -6 -6 -6 -6 -6 -6 -6 -5 -5 -5 -5 -4 -4 -4 -4 -3 -2 -1 --------- Run | Yrd Mat Mat Mat Fac Fac Was Fac Ext Cet Arc Hub Fac Upp Upp Zhi Pro Fac Gar Fac Res Res Acc Distress Signals 27 | . 2 5 . 1 . . 1 . 2 . 3 1 . . . . 2 . 1 3 5 1 Communications Jammed 11 | . . . . . . . . . . . . . . . . . 10 . . . 1 . Distress Signals 9 | . . . . . . . . . . . . . . . . . 8 . . . 1 . Times Spotted 378 | . 19 38 22 14 19 6 6 18 9 4 36 22 5 1 . 24 34 1 34 12 39 15 Peak Tracking Total 11 | . 7 4 6 4 3 6 2 5 5 5 11 10 5 1 . 7 11 1 10 4 8 8 Tactical Retreats 33 | . 2 1 1 2 3 . . . . . . 6 3 . . 6 4 . 2 . . 3 Traps | -11 -10 -9 -8 -7 -6 -6 -6 -6 -6 -6 -6 -5 -5 -5 -5 -4 -4 -4 -4 -3 -2 -1 ------- Run | Yrd Mat Mat Mat Fac Fac Was Fac Ext Cet Arc Hub Fac Upp Upp Zhi Pro Fac Gar Fac Res Res Acc Traps Triggered 10 | . . . . . 1 . . 1 . . 1 5 . . . . . . 1 . . 1 Indirectly . | . . . . . . . . . . . . . . . . . . . . . . . Trap Hack Attempts . | . . . . . . . . . . . . . . . . . . . . . . . Triggered . | . . . . . . . . . . . . . . . . . . . . . . . Disarmed . | . . . . . . . . . . . . . . . . . . . . . . . Reprogrammed . | . . . . . . . . . . . . . . . . . . . . . . . Reused . | . . . . . . . . . . . . . . . . . . . . . . . Traps Extracted . | . . . . . . . . . . . . . . . . . . . . . . . Installed . | . . . . . . . . . . . . . . . . . . . . . . . Triggered . | . . . . . . . . . . . . . . . . . . . . . . . Machines | -11 -10 -9 -8 -7 -6 -6 -6 -6 -6 -6 -6 -5 -5 -5 -5 -4 -4 -4 -4 -3 -2 -1 ---------- Run | Yrd Mat Mat Mat Fac Fac Was Fac Ext Cet Arc Hub Fac Upp Upp Zhi Pro Fac Gar Fac Res Res Acc Machines Disabled 56 | . . 5 . . 2 . 6 4 1 2 2 1 . . . . 4 5 17 . 7 . Max in Single Turn 13 | . . 1 . . 1 . 5 1 1 1 1 1 . . . . 2 1 13 . 2 . Garrison Access 2 | . . . . . . . . . . . 1 . . . . . . . . . 1 . Garrison Relay 4 | . . . . . . . . . . . . . . . . . . 4 . . . . Network Hub 1 | . . . . . . . . . . . 1 . . . . . . . . . . . Machines Repaired . | . . . . . . . . . . . . . . . . . . . . . . . Machines Dismantled . | . . . . . . . . . . . . . . . . . . . . . . . Machines Sabotaged . | . . . . . . . . . . . . . . . . . . . . . . . Overloaded Fab Kills . | . . . . . . . . . . . . . . . . . . . . . . . Hacking | -11 -10 -9 -8 -7 -6 -6 -6 -6 -6 -6 -6 -5 -5 -5 -5 -4 -4 -4 -4 -3 -2 -1 --------- Run | Yrd Mat Mat Mat Fac Fac Was Fac Ext Cet Arc Hub Fac Upp Upp Zhi Pro Fac Gar Fac Res Res Acc Machines Accessed 51 | . 1 4 1 4 2 . 3 3 1 . 2 5 2 1 4 . 7 3 2 2 . 4 Terminals 28 | . . 3 . 3 1 . . 3 1 . 2 3 . . . . 2 3 1 2 . 4 Fabricators 3 | . . . . . . . . . . . . 1 . . . . 2 . . . . . Repair Stations 7 | . 1 1 1 . . . . . . . . 1 . . . . 2 . 1 . . . Recycling Units 2 | . . . . . . . 2 . . . . . . . . . . . . . . . Scanalyzers . | . . . . . . . . . . . . . . . . . . . . . . . Garrison Access 4 | . . . . 1 1 . 1 . . . . . . . . . 1 . . . . . Total Hacks 154 | . 3 14 1 11 6 . 6 7 2 . 7 19 4 1 17 . 25 8 3 8 . 12 Successful 68 | . 2 8 1 . 3 . 3 3 . . 1 4 4 1 17 . 10 3 1 2 . 5 Failed 86 | . 1 6 . 11 3 . 3 4 2 . 6 15 . . . . 15 5 2 6 . 7 Catastrophic 21 | . . . . 2 1 . 1 1 2 . 1 5 . . . . 2 3 1 1 . 1 Database Lockouts . | . . . . . . . . . . . . . . . . . . . . . . . Manual 53 | . . 9 1 . 5 . 2 2 1 . 7 11 . . . . 10 2 1 2 . . Terminals 85 | . . 11 . 9 1 . . 7 2 . 7 12 . . . . 6 8 2 8 . 12 Fabricators 19 | . . . . . . . . . . . . 6 . . . . 13 . . . . . Repair Stations 13 | . 3 3 1 . . . . . . . . 1 . . . . 4 . 1 . . . Recycling Units 4 | . . . . . . . 4 . . . . . . . . . . . . . . . Scanalyzers . | . . . . . . . . . . . . . . . . . . . . . . . Garrison Access 11 | . . . . 2 5 . 2 . . . . . . . . . 2 . . . . . Terminal Hacks 43 | . . 7 . . . . . 3 . . . 1 4 1 17 . . 3 . 2 . 5 Record 8 | . . . . . . . . . . . . . 3 . 5 . . . . . . . Part Schematic 4 | . . . . . . . . . . . . . . . 4 . . . . . . . Robot Analysis 6 | . . 1 . . . . . . . . . . . . 4 . . . . . . 1 Prototype ID Bank 5 | . . . . . . . . . . . . . . . 4 . . . . . . 1 Open Door 5 | . . . . . . . . 1 . . . . 1 1 . . . 1 . . . 1 Level Access Points 1 | . . . . . . . . . . . . . . . . . . . . . . 1 Branch Access Points 1 | . . . . . . . . . . . . 1 . . . . . . . . . . Emergency Access Points 1 | . . . . . . . . . . . . . . . . . . 1 . . . . Alert Level 5 | . . 2 . . . . . . . . . . . . . . . . . 2 . 1 Unreport Threat 1 | . . 1 . . . . . . . . . . . . . . . . . . . . Locate Traps 2 | . . 2 . . . . . . . . . . . . . . . . . . . . Dispatch Records 1 | . . . . . . . . 1 . . . . . . . . . . . . . . Patrol Status 1 | . . . . . . . . 1 . . . . . . . . . . . . . . Registered Components 1 | . . 1 . . . . . . . . . . . . . . . . . . . . Garrison Registry 1 | . . . . . . . . . . . . . . . . . . 1 . . . . Fabricator Hacks 6 | . . . . . . . . . . . . 2 . . . . 4 . . . . . Network Status 2 | . . . . . . . . . . . . 1 . . . . 1 . . . . . Load Schematic 1 | . . . . . . . . . . . . . . . . . 1 . . . . . Build 3 | . . . . . . . . . . . . 1 . . . . 2 . . . . . Repair Station Hacks 3 | . 2 . . . . . . . . . . . . . . . 1 . . . . . Scan Component 2 | . 1 . . . . . . . . . . . . . . . 1 . . . . . Repair 1 | . 1 . . . . . . . . . . . . . . . . . . . . . Recycling Unit Hacks 2 | . . . . . . . 2 . . . . . . . . . . . . . . . Report Inventory 2 | . . . . . . . 2 . . . . . . . . . . . . . . . Scanalyzer . | . . . . . . . . . . . . . . . . . . . . . . . Garrison Access Hacks 1 | . . . . . . . . . . . . . . . . . 1 . . . . . Unlock Access 1 | . . . . . . . . . . . . . . . . . 1 . . . . . Unauthorized Hacks 13 | . . 1 1 . 3 . 1 . . . 1 1 . . . . 4 . 1 . . . Terminals 2 | . . . . . . . . . . . 1 . . . . . 1 . . . . . Botnet 1 | . . . . . . . . . . . . . . . . . 1 . . . . . Sabotage 1 | . . . . . . . . . . . 1 . . . . . . . . . . . Fabricators 1 | . . . . . . . . . . . . . . . . . 1 . . . . . Prioritize 1 | . . . . . . . . . . . . . . . . . 1 . . . . . Repair Stations 6 | . . 1 1 . . . . . . . . 1 . . . . 2 . 1 . . . Patch 6 | . . 1 1 . . . . . . . . 1 . . . . 2 . 1 . . . Recycling Units 1 | . . . . . . . 1 . . . . . . . . . . . . . . . Tunnel 1 | . . . . . . . 1 . . . . . . . . . . . . . . . Scanalyzers . | . . . . . . . . . . . . . . . . . . . . . . . Garrison Access 3 | . . . . . 3 . . . . . . . . . . . . . . . . . Broadcast 1 | . . . . . 1 . . . . . . . . . . . . . . . . . Decoy 1 | . . . . . 1 . . . . . . . . . . . . . . . . . Watchers 1 | . . . . . 1 . . . . . . . . . . . . . . . . . Data Cores Recovered 1 | . . 1 . . . . . . . . . . . . . . . . . . . . Used . | . . . . . . . . . . . . . . . . . . . . . . . Hacking Detections 39 | . 1 4 . 4 2 . 3 3 1 . 2 4 . . . . 6 2 1 2 . 4 Full Trace Events 9 | . 1 . . 3 . . 1 . . . 1 1 . . . . 1 . . . . 1 Feedback Events 1 | . . . . . . . . . . . . . . . . . . . . . . 1 Corruption 1 | . . . . . . . . . . . . . . . . . . . . . . 1 Feedback Blocked . | . . . . . . . . . . . . . . . . . . . . . . . Robot Schematics Acquired . | . . . . . . . . . . . . . . . . . . . . . . . Robots Built 2 | . . . . . . . . . . . . 2 . . . . . . . . . . Authchips . | . . . . . . . . . . . . . . . . . . . . . . . Time 40 | . . . . . . . . . . . . 40 . . . . . . . . . . Total Robot Build Rating 2 | . . . . . . . . . . . . 2 . . . . . . . . . . Part Schematics Acquired 4 | . . . . . . . . . . . . . . . 4 . . . . . . . Parts Built 2 | . . . . . . . . . . . . . . . . . 2 . . . . . Authchips . | . . . . . . . . . . . . . . . . . . . . . . . Time 245 | . . . . . . . . . . . . . . . . . 245 . . . . . Total Part Build Rating 14 | . . . . . . . . . . . . . . . . . 14 . . . . . Parts Repaired 1 | . 1 . . . . . . . . . . . . . . . . . . . . . Time 32 | . 32 . . . . . . . . . . . . . . . . . . . . . Parts Recycled . | . . . . . . . . . . . . . . . . . . . . . . . Recycled Matter . | . . . . . . . . . . . . . . . . . . . . . . . Retrieved Matter . | . . . . . . . . . . . . . . . . . . . . . . . Retrieved Components . | . . . . . . . . . . . . . . . . . . . . . . . Parts Scanalyzed . | . . . . . . . . . . . . . . . . . . . . . . . Part Schematics Acquired . | . . . . . . . . . . . . . . . . . . . . . . . Parts Damaged . | . . . . . . . . . . . . . . . . . . . . . . . Bothacking | -11 -10 -9 -8 -7 -6 -6 -6 -6 -6 -6 -6 -5 -5 -5 -5 -4 -4 -4 -4 -3 -2 -1 ------------ Run | Yrd Mat Mat Mat Fac Fac Was Fac Ext Cet Arc Hub Fac Upp Upp Zhi Pro Fac Gar Fac Res Res Acc Used RIF Installer . | . . . . . . . . . . . . . . . . . . . . . . . Robots Hacked 2 | . . . . . . . . . . . . . . . . . 2 . . . . . Non-combat 1 | . . . . . . . . . . . . . . . . . 1 . . . . . Combat 1 | . . . . . . . . . . . . . . . . . 1 . . . . . Robot Hacks Applied 2 | . . . . . . . . . . . . . . . . . 2 . . . . . parse_system 1 | . . . . . . . . . . . . . . . . . 1 . . . . . find_station 1 | . . . . . . . . . . . . . . . . . 1 . . . . . Relay Couplers Released 24 | . . . . . . . . . . . 2 . . . . . . 20 . . 2 . Machine Destruction 20 | . . . . . . . . . . . 2 . . . . . . 16 . . 2 . Programmers 4 | . . . . . . . . . . . . . . . . . . 4 . . . . Fabnet Peak Effective % . | . . . . . . . . . . . . . . . . . . . . . . . Robots Rewired 18 | . . . . . . . . 4 . . . . . . . . . 14 . . . . Allies Hacked . | . . . . . . . . . . . . . . . . . . . . . . . Hacks Repelled . | . . . . . . . . . . . . . . . . . . . . . . . Allies | -11 -10 -9 -8 -7 -6 -6 -6 -6 -6 -6 -6 -5 -5 -5 -5 -4 -4 -4 -4 -3 -2 -1 -------- Run | Yrd Mat Mat Mat Fac Fac Was Fac Ext Cet Arc Hub Fac Upp Upp Zhi Pro Fac Gar Fac Res Res Acc Total Allies 26 | . . . . . . . . 5 5 . . 2 . . . . . 14 . . . . Largest Group 12 | . . . . . . . . 5 8 7 . 2 . . . . . 12 12 . . . Highest-Rated Group 704 | . . . . . . . . 285 704 608 . 20 . . . . . 466 466 . . . Highest-Rated Ally 159 | . . . . . . . . 159 159 159 . 10 . . . . . 56 51 . . . Initial Warlord ECA Mod 26 | . . . . . . . . . . . . . . . . . . . 8 7 6 5 Total Orders 2 | . . . . . . . . . . . . . . . . . 2 . . . . . EXPLORE 1 | . . . . . . . . . . . . . . . . . 1 . . . . . RETURN 1 | . . . . . . . . . . . . . . . . . 1 . . . . . Ally Attacks 267 | . . . . . . . . 66 40 44 . . . . . . 49 5 63 . . . Total Damage 6555 | . . . . . . . . 1274 1134 1375 . . . . . . 769 147 1856 . . . Kills 42 | . . . . . . . . 9 7 10 . . . . . . 4 1 11 . . . Allies Corrupted 1 | . . . . . . . . . . . . . . . . . . 1 . . . . Allies Melted . | . . . . . . . . . . . . . . . . . . . . . . . Intel | -11 -10 -9 -8 -7 -6 -6 -6 -6 -6 -6 -6 -5 -5 -5 -5 -4 -4 -4 -4 -3 -2 -1 ------- Run | Yrd Mat Mat Mat Fac Fac Was Fac Ext Cet Arc Hub Fac Upp Upp Zhi Pro Fac Gar Fac Res Res Acc Active Infowar (turns) 8713 | . 55 . . 418 899 169 511 683 606 52 1 200 221 123 162 540 700 1604 368 781 412 208 Optics 31 | . . . . . . . . . . . . . . . . . . . . . . 31 Sensors 4682 | . . . . . 552 169 511 683 606 52 . 145 219 120 162 67 . . . 781 407 208 A.S.S. 765 | . . . . 418 347 . . . . . . . . . . . . . . . . . Terrain 1 | . . . . . . . . . . . . . . . . . . . 1 . . . Structural 55 | . 55 . . . . . . . . . . . . . . . . . . . . . Seismic 108 | . . . . . . . . . . . . 108 . . . . . . . . . . Decoding 3453 | . . . . . . . . . . . . . 2 123 162 540 700 1604 322 . . . Machine Analysis 2 | . . . . . 1 . . . . . 1 . . . . . . . . . . . Cloaking 52 | . . . . . . . . . . . . . . . . . . . . . . 52 Jamming 2884 | . . . . . . . . . . . . . . . . . 493 1604 66 441 280 . Robot Analysis Total 6 | . . 1 . . . . . . . . . . . . 4 . . . . . . 1 Derelict Logs Recovered 4 | . . . . . . . . . . . . . 2 . . 2 . . . . . . Drone Launches 3 | . . . . . . . . . . . . . . . . . 3 . . . . . Drone Recoveries 1 | . . . . . . . . . . . . . . . . . 1 . . . . . Decoded 0b10 Intel 52 | . . . . . . . . . . . . . . . . . 19 24 9 . . . Traps 2 | . . . . . . . . . . . . . . . . . 1 1 . . . . Emergency Access 2 | . . . . . . . . . . . . . . . . . . 1 1 . . . Items 41 | . . . . . . . . . . . . . . . . . 14 20 7 . . . Machines 2 | . . . . . . . . . . . . . . . . . . 1 1 . . . Patrols 1 | . . . . . . . . . . . . . . . . . 1 . . . . . Guards 3 | . . . . . . . . . . . . . . . . . 3 . . . . . Exits 1 | . . . . . . . . . . . . . . . . . . 1 . . . . Exploration | -11 -10 -9 -8 -7 -6 -6 -6 -6 -6 -6 -6 -5 -5 -5 -5 -4 -4 -4 -4 -3 -2 -1 ------------- Run | Yrd Mat Mat Mat Fac Fac Was Fac Ext Cet Arc Hub Fac Upp Upp Zhi Pro Fac Gar Fac Res Res Acc Turns Passed 11676 | . 465 873 389 446 928 169 511 686 606 169 513 312 226 123 162 540 700 1604 649 786 610 209 Spaces Moved 7434 | 1 197 377 145 256 495 139 323 339 359 94 175 485 484 271 167 370 378 1017 393 427 233 309 Core 2 | . . . . . . . . . . . 1 1 . . . . . . . . . . Treads 1456 | . 32 377 59 36 . . . . 81 94 174 33 . . . . . . . 354 216 . Legs 3723 | 1 165 . . . 121 139 323 339 278 . . . . . 71 370 378 1017 393 39 17 72 Wheels 714 | . . . 86 220 374 . . . . . . . . . . . . . . 34 . . Hover . | . . . . . . . . . . . . . . . . . . . . . . . Flight 1539 | . . . . . . . . . . . . 451 484 271 96 . . . . . . 237 Fastest Speed 32 | 120 120 160 105 115 90 120 120 120 120 160 160 32 32 37 37 120 120 120 120 115 100 37 Average Speed 111 | 120 126 160 139 129 114 120 120 145 131 160 181 47 36 38 79 120 120 120 120 141 151 53 Slowest Speed 400 | 120 160 160 250 250 260 120 120 190 190 160 400 250 37 187 120 120 125 125 120 150 225 103 Overloaded Moves 39 | . . . . . . . . . . . . 20 19 . . . . . . . . . Propulsion Burnouts . | . . . . . . . . . . . . . . . . . . . . . . . Robots Hopped 13 | . . . . . . . . . . . . 5 1 . . . . . . . . 7 Potential Cave-ins . | . . . . . . . . . . . . . . . . . . . . . . . Cave-ins Triggered . | . . . . . . . . . . . . . . . . . . . . . . . Teleports 1 | . . . . . . . . . . . . . . . . . . . 1 . . . Exploration Rate (%) 38 | 2 42 47 15 8 7 98 10 52 78 90 32 16 65 43 61 76 12 96 13 9 9 9 Regions Visited 22 Branch Regions 8 Pre-discovered Areas 4 | . . . . . . . 1 . . . . . . . 3 . . . . . . . Known Exits Taken 12 | . . . . 1 . . 1 1 1 . 1 1 1 1 1 1 1 . . 1 . . Unknown Exits Taken 7 | 1 1 1 1 . . . . . . 1 . . . . . . . . 1 . 1 . Scrap Searched 8 | . . . . . . . . . . . . . 2 3 . 3 . . . . . . Spaces Dug 2 | . . . . . 1 . . . . . . . . . . . . . . 1 . . Terrain Destroyed 520 | . . . 4 . 8 . 62 4 59 . 88 . . . . . 46 8 130 8 103 . Melee . | . . . . . . . . . . . . . . . . . . . . . . . Projectile 134 | . . . . . 8 . 11 2 3 . 11 . . . . . 13 8 57 8 13 . AOE 386 | . . . 4 . . . 51 2 56 . 77 . . . . . 33 . 73 . 90 . Terrain Rammed . | . . . . . . . . . . . . . . . . . . . . . . . Walls Destroyed . | . . . . . . . . . . . . . . . . . . . . . . . Machines Disabled . | . . . . . . . . . . . . . . . . . . . . . . . Actions | -11 -10 -9 -8 -7 -6 -6 -6 -6 -6 -6 -6 -5 -5 -5 -5 -4 -4 -4 -4 -3 -2 -1 --------- Run | Yrd Mat Mat Mat Fac Fac Was Fac Ext Cet Arc Hub Fac Upp Upp Zhi Pro Fac Gar Fac Res Res Acc Total 9517 | . 306 486 237 315 752 139 394 462 474 106 263 552 529 290 189 419 519 1353 491 553 348 340 Wait 576 | . 32 . 10 15 120 . 2 29 71 . 5 9 44 6 . 6 40 148 17 12 8 2 Move 7387 | . 196 376 144 255 495 138 322 338 358 93 174 475 481 270 166 369 378 1014 392 426 232 295 Hop 11 | . . . . . . . . . . . . 4 1 . . . . . . . . 6 Pick Up 87 | . 5 11 4 2 11 . 5 . 1 2 1 3 1 2 4 2 3 . 3 19 5 3 Fast Attach 138 | . 3 1 10 3 11 1 5 1 8 . 11 19 1 3 6 7 15 3 3 11 9 7 Attach 69 | . 3 2 7 2 10 . . . 2 3 3 7 . . 5 1 3 . 2 6 10 3 Detach 46 | . . 1 1 3 4 . 2 . 4 1 2 6 . 1 3 . 2 . 2 5 3 6 Swap 160 | . 6 11 7 4 20 . 6 14 7 2 7 . 1 3 2 . 6 13 19 20 12 . Drop 144 | . 6 10 5 3 21 . 10 7 9 1 1 7 . 5 1 3 4 5 12 17 4 13 Fire 648 | . 52 72 49 28 59 . 29 36 14 4 57 4 . . 2 28 65 15 39 25 65 5 Melee 2 | . . . . . . . . . . . . . . . . . 2 . . . . . Ram . | . . . . . . . . . . . . . . . . . . . . . . . Kick 49 | . . . . . 1 . 13 2 . . . . . . . 3 1 27 2 . . . Crush 19 | . 3 2 . . . . . . . . 2 . . . . . . . . 12 . . Escape Stasis 24 | . . . . . . . . 6 . . . 18 . . . . . . . . . . Rewire 157 | . . . . . . . . 29 . . . . . . . . . 128 . . . . Trap . | . . . . . . . . . . . . . . . . . . . . . . . Miscellaneous . | . . . . . . . . . . . . . . . . . . . . . . . Route ------- -11/Scrapyard -10/Materials -9/Materials (discovered 2 exits: *Mat / [*Min]) -8/Materials -7/Factory -6/Factory -6/Waste -6/Factory -6/Extension (discovered 2 exits: *Fac / *Cet) -6/Cetus (discovered 2 exits: *Fac / *Arc) -6/Archives (discovered 2 exits: *Fac / *Hub) -6/Hub_04(d) -5/Factory (discovered 2 exits: *Upp x2) -5/Upper Caves -5/Upper Caves (discovered 2 exits: *Fac / *Zhi) -5/Zhirov -4/Proximity Caves -4/Factory -4/Garrison (discovered 3 exits: *Fac x3) -4/Factory -3/Research (discovered 2 exits: *Res / *Arm) -2/Research -1/Access To Epsilon Eridani History --------- Turn | Location | Event 1 | -11/Scrapyard | Discovered new exit (range 0) 1 | -11/Scrapyard | Entered Materials 236 | -10/Materials | Repaired Particle Gun 314 | -10/Materials | Build established: Mutant 426 | -10/Materials | Discovered new exit (range 15) 466 | -10/Materials | Entered another Materials area 466 | -9/Materials | Evolved 2 slots: Propulsion x1, Weapon x1 640 | -9/Materials | Discovered new exit (range 3) 763 | -9/Materials | Build established: Gunner 828 | -9/Materials | Destroyed 9 combat bots 1099 | -9/Materials | Discovered new exit (range 10) 1339 | -9/Materials | Entered another Materials area 1339 | -8/Materials | Evolved 2 slots: Utility x2 1499 | -8/Materials | Lost 5 parts (1p2n2w) 1507 | -8/Materials | Found Prototype Device 1588 | -8/Materials | Discovered new exit (range 8) 1611 | -8/Materials | Core integrity fell below 50% 1686 | -8/Materials | System corruption reached 10% 1728 | -8/Materials | Entered Factory 1728 | -7/Factory | Evolved 2 slots: Utility x2 1756 | -7/Factory | Identified Active Sensor Suite 2045 | -7/Factory | Garrison activated, responded to threat 2061 | -7/Factory | Build established: Scavenger-Skirmisher 2118 | -7/Factory | Discovered new exit (range 5) 2173 | -7/Factory | Identified exit to Factory 2174 | -7/Factory | Entered another Factory area 2174 | -6/Factory | Evolved 2 slots: Utility x2 2552 | -6/Factory | Lost 3 parts (2u1w) 2565 | -6/Factory | Garrison activated, responded to threat 2816 | -6/Factory | Build established: Scavenger-Tank 3102 | -6/Factory | Sucked down chute 3102 | -6/Factory | Entered Waste 3117 | -6/Waste | EMP discharged 3117 | -6/Waste | System corruption reached 10% 3123 | -6/Waste | Spotted C-40 Crusher 3130 | -6/Waste | Spotted C-40 Crusher 3139 | -6/Waste | Spotted C-40 Crusher 3157 | -6/Waste | Spotted C-40 Crusher 3158 | -6/Waste | Spotted C-40 Crusher 3181 | -6/Waste | Spotted C-40 Crusher 3217 | -6/Waste | EMP discharged 3260 | -6/Waste | Discovered new exit (range 10) 3270 | -6/Waste | Identified exit to Factory 3271 | -6/Waste | Entered Factory 3574 | -6/Factory | Found Prototype Launcher 3574 | -6/Factory | Identified Rocket Array 3677 | -6/Factory | Discovered new exit (range 12) 3781 | -6/Factory | Identified exit to Extension 3782 | -6/Factory | Entered Extension 3808 | -6/Extension | Disrupted transfer network 3872 | -6/Extension | Rescued A7 4100 | -6/Extension | Spotted B-75 Beast 4160 | -6/Extension | Destroyed B-75 Beast 4174 | -6/Extension | Spotted B-75 Beast 4193 | -6/Extension | System corruption reached 30% 4193 | -6/Extension | Allies destroyed B-75 Beast 4432 | -6/Extension | Discovered new exit (range 16) 4433 | -6/Extension | Discovered new exit (range 15) 4461 | -6/Extension | Identified exit to Factory 4465 | -6/Extension | Identified exit to Cetus 4468 | -6/Extension | Entered Cetus 4468 | -6/Cetus | Accompanied by 3 allies (A7) 4473 | -6/Cetus | Acquired a Cetus Manufacturing Module code from A7 4492 | -6/Cetus | Spotted Cetus Guard 4493 | -6/Cetus | Spotted Cetus Guard 4497 | -6/Cetus | Spotted Cetus Guard 4501 | -6/Cetus | Allies destroyed Cetus Guard 4507 | -6/Cetus | Allies destroyed Cetus Guard 4509 | -6/Cetus | Allies destroyed Cetus Guard 4512 | -6/Cetus | Spotted Cetus Guard 4515 | -6/Cetus | Allies destroyed Cetus Guard 4563 | -6/Cetus | Started Cetus Manufacturing Module 4588 | -6/Cetus | Manufactured an Enhanced Grunt 4613 | -6/Cetus | Manufactured an Enhanced Grunt 4638 | -6/Cetus | Manufactured an Enhanced Grunt 4663 | -6/Cetus | Manufactured an Enhanced Grunt 4688 | -6/Cetus | Manufactured an Enhanced Grunt 4816 | -6/Cetus | Discovered new exit (range 16) 4843 | -6/Cetus | Spotted Cetus Guard 4843 | -6/Cetus | Spotted Cetus Guard 4848 | -6/Cetus | Spotted Cetus Guard 4848 | -6/Cetus | Destroyed Cetus Guard 4848 | -6/Cetus | Spotted Cetus Guard 4855 | -6/Cetus | Allies destroyed Cetus Guard 4860 | -6/Cetus | Destroyed Cetus Guard 4867 | -6/Cetus | Allies destroyed Cetus Guard 4885 | -6/Cetus | Discovered exit to Factory (range 15) 4892 | -6/Cetus | Met Revision 17 5008 | -6/Cetus | Escorted A7 to Cetus Mainframe 5058 | -6/Cetus | Identified exit to Archives 5074 | -6/Cetus | Entered Archives 5074 | -6/Archives | Accompanied by 7 allies (A7) 5079 | -6/Archives | Received a hacking code to weaken MAIN.C 5092 | -6/Archives | Met Zhirov 5098 | -6/Archives | Reinforcements dispatched to Archives 5134 | -6/Archives | Discovered new exit (range 16) 5143 | -6/Archives | Reinforcements dispatched to Archives 5145 | -6/Archives | Zhirov warped through subspace 5163 | -6/Archives | Zhirov detonated Archives 5194 | -6/Archives | Lost 4 allies 5197 | -6/Archives | Discovered exit to Factory (range 15) 5243 | -6/Archives | Entered Hub_04(d) 5509 | -6/Hub_04(d) | Garrison activated, responded to threat 5533 | -6/Hub_04(d) | Destroyed 9 combat bots 5593 | -6/Hub_04(d) | First assault squad dispatched 5600 | -6/Hub_04(d) | Destroyed 7 combat bots 5672 | -6/Hub_04(d) | Destroyed 10 combat bots 5674 | -6/Hub_04(d) | Lost 6 parts (1n2u3w) 5710 | -6/Hub_04(d) | Discovered exit to Factory (range 4) 5756 | -6/Hub_04(d) | Network Hub disabled 5756 | -6/Hub_04(d) | Entered Factory 5756 | -5/Factory | Evolved 2 slots: Propulsion x1, Utility x1 5787 | -5/Factory | Lost 5 parts (1p1n3u) 5880 | -5/Factory | Fabricated T-07 Excavator? 6047 | -5/Factory | Lost 4 parts (2n2u) 6053 | -5/Factory | Identified exit to Upper Caves 6068 | -5/Factory | Entered Upper Caves 6078 | -5/Upper Caves | Attracted the attention of an 0b10 outpost 6103 | -5/Upper Caves | Entered an active Warlord outpost 6110 | -5/Upper Caves | Learned location of 1 exit from Research 6188 | -5/Upper Caves | Learned Factory interactive machine intel 6269 | -5/Upper Caves | Identified exit to Upper Caves 6290 | -5/Upper Caves | Attracted the attention of an 0b10 checkpoint 6294 | -5/Upper Caves | Entered another Upper Caves area 6300 | -5/Upper Caves | Discovered new exit (range 4) 6301 | -5/Upper Caves | Identified exit to Factory 6375 | -5/Upper Caves | Build established: Mutant 6413 | -5/Upper Caves | Discovered new exit (range 3) 6414 | -5/Upper Caves | Identified exit to Zhirov 6417 | -5/Upper Caves | Entered Zhirov 6417 | -5/Zhirov | Discovered new exit (range 3) 6432 | -5/Zhirov | Learned location of Quarantine (-2) 6432 | -5/Zhirov | Learned location of Testing (-3) 6443 | -5/Zhirov | Found Alien Artifact 6443 | -5/Zhirov | Identified Integrated Reactor 6443 | -5/Zhirov | Installed Integrated Reactor, increased core energy generation (+10) 6449 | -5/Zhirov | Found Alien Artifact 6578 | -5/Zhirov | Identified exit to Proximity Caves 6579 | -5/Zhirov | Entered Proximity Caves 6655 | -4/Proximity Caves | Core integrity fell below 50% 6690 | -4/Proximity Caves | Lost 3 parts (1n1u1w) 6702 | -4/Proximity Caves | Spotter reported a threat 6717 | -4/Proximity Caves | Learned location of 1 exit from Upper Caves 6755 | -4/Proximity Caves | Spotter reported a threat 6837 | -4/Proximity Caves | Spotter reported a threat 6875 | -4/Proximity Caves | Spotter reported a threat 6883 | -4/Proximity Caves | Learned Research stockpile data 6938 | -4/Proximity Caves | Spotter reported a threat 6971 | -4/Proximity Caves | Spotter reported a threat 6975 | -4/Proximity Caves | Attracted the attention of an 0b10 checkpoint 6986 | -4/Proximity Caves | Build established: Scavenger-Tank 7032 | -4/Proximity Caves | Spotter reported a threat 7046 | -4/Proximity Caves | Spotted B-86 Titan 7071 | -4/Proximity Caves | Core integrity fell below 20% 7101 | -4/Proximity Caves | Lost 8 parts (2n3u3w) 7111 | -4/Proximity Caves | Discovered exit to Factory (range 9) 7119 | -4/Proximity Caves | Entered Factory 7119 | -4/Factory | Evolved 2 slots: Power x1, Weapon x1 7120 | -4/Factory | Loaded intel: 54 interactive machine locations 7321 | -4/Factory | Fabricated Assault Drone Bay? 7347 | -4/Factory | Build established: Mutant 7369 | -4/Factory | Search patrols dispatched 7619 | -4/Factory | Search patrols dispatched 7697 | -4/Factory | Fabricated Shield Leg (x1) 7819 | -4/Factory | Identified exit to Garrison 7819 | -4/Factory | Entered Garrison 7819 | -4/Garrison | Discovered recently destroyed garrison 7890 | -4/Garrison | Build established: Scavenger-Gunner 7943 | -4/Garrison | Garrison Relay disabled 7960 | -4/Garrison | Identified exit to Factory 8193 | -4/Garrison | P-80 Master assimilated allied Sentinel 7a 8266 | -4/Garrison | Discovered exit to Factory (range 69) 8266 | -4/Garrison | Discovered exit to Factory (range 12) 8266 | -4/Garrison | Discovered exit to Factory (range 45) 8416 | -4/Garrison | Garrison Relay disabled 8427 | -4/Garrison | Garrison Relay disabled 8558 | -4/Garrison | Garrison Relay disabled 8923 | -4/Garrison | Build established: Commander-Gunner 9060 | -4/Garrison | Attempted to access garrison exit controls, blocked by remote lockdown 9145 | -4/Garrison | System corruption reached 10% 9239 | -4/Garrison | Attempted to access garrison exit controls, blocked by remote lockdown 9423 | -4/Garrison | Entered Factory 9423 | -4/Factory | Accompanied by 12 allies 9891 | -4/Factory | P-70 Sage assimilated allied QJ-0VS(b) 9923 | -4/Factory | First assault squad dispatched 9961 | -4/Factory | Identified Transdimensional Reconstructor 9961 | -4/Factory | Warped through subspace 10038 | -4/Factory | Build established: Scavenger-Gunner 10052 | -4/Factory | Discovered new exit (range 15) 10072 | -4/Factory | Entered Research 10072 | -3/Research | Evolved 2 slots: Propulsion x1, Utility x1 10073 | -3/Research | Identified exit to Armory 10222 | -3/Research | Lost 3 parts (1p1u1w) 10272 | -3/Research | Revision forces began assault on 0b10 10303 | -3/Research | Met up with Revision 17++ 10388 | -3/Research | Spotted B-86 Titan 10440 | -3/Research | Build established: Scavenger-Tank 10762 | -3/Research | Discovered new exit (range 11) 10772 | -3/Research | Research terminal network offline 10782 | -3/Research | Identified exit to Research 10858 | -3/Research | Entered another Research area 10858 | -2/Research | Evolved 2 slots: Utility x2 11203 | -2/Research | Spotted B-90 Cyclops 11219 | -2/Research | Destroyed B-90 Cyclops 11226 | -2/Research | Garrison activated, responded to threat 11261 | -2/Research | System corruption reached 10% 11368 | -2/Research | Found Prototype Hackware 11368 | -2/Research | Identified Exp. Hacking Suite 11373 | -2/Research | Destroyed 8 combat bots 11376 | -2/Research | Lost 9 parts (1p2n4u2w) 11452 | -2/Research | Discovered new exit (range 15) 11468 | -2/Research | Entered Access 11468 | -1/Access | Evolved 2 slots: Power x1, Utility x1 11492 | -1/Access | Lost 11 parts (2p5u4w) 11604 | -1/Access | Identified exit to Surface 11677 | *** | Escaped! Last Messages --------------- Map updated. >>Prototypes Downloading prototype IDs... Adv. Particle Accelerator Exp. Actuator Array Exp. Gyrokinetic Inverter Thermal Barrier 11605_ Slug penetrates Wall. 11623_ Acquired Imp. Cloaking Device. 11638_ Acquired Field Propulsion Array. 11646_ Acquired Enh. Optical Array. 11649_ ALERT: Potential suspicious activity detected, Programmers report to Access Zone 2K. 11652_ Acquired Unknown Reactor. 11652_ Identified Lgt. Quantum Reactor. 11667_ W-44 Eye sends out distress signal. 11674_ Connecting with Terminal... >>Open(Door) Sealed Barrier opened. 11675_ The Access Shell folds into the floor. Map ----- +----------------------------------------------------+ | ?????????????????????????????????????????????????? | | ?????????????????????????????????????????????????? | | ?????????????????????????????????????????????????? | | ?????????????????????????????????????????????????? | | ?????????????????????????????????????????????????? | | ?????????????????????????????????????????????????? | | ?????????????????????????????????????????????????? | | ?????????????????????????????????????????????????? | | ?????????????????????????????????????????????????? | | ###+##???????????????????????????????????????????? | | # ###/################################????????? | | # " s ??????? | | #| ? s p ? ???????? | | # ###+############s ""#?????????????????? | | ## ## #????#s ""#?????????????????? | | ?# ## #????#s ""#?????????????????? | | ?# ## = " #????# T#?????????????????? | | ?+ ## """ #????# ""#?????????????????? | | ?# ## """ #????# ""#?????????????????? | | # ## " ###### ""##????????????????? | | + ## + ## #????????????????? | | ## ### ## ### ##????????????????? | | ##/############## #?# #?????????????????? | | #???????????# #?# #?????????????????? | | #???????????# #?# #?????????????????? | | #???????????# #?# @" #?????????????????? | | #???????????# #?# "" #?????????????????? | | #???????????# #?# #?????????????????? | | #???????????# #?# #?????????????????? | | #???????????# #?# #?????????????????? | | #???????????# #?#""""""""""#?????????????????? | | #???????????# #??????????????????????????????? | | #???????????#?#??????????????????????????????? | | #####???????????# #??????????????????????????????? | | ????????????????# #??????????????????????????????? | | ????????????????+ #??????????????????????????????? | | ????????????????? ???????????????????????????????? | | ????????????????? ???????????????????????????????? | | ????????????????? ???????????????????????????????? | | ????????????????? ???????????????????????????????? | | ????????????????? ???????????????????????????????? | | ????????????????? ???????????????????????????????? | | ????????????????? ???????????????????????????????? | | ????????????????? ???????????????????????????????? | | ????????????????? ???????????????????????????????? | | ????????????????? ???????????????????????????????? | | ?????????????????????????????????????????????????? | | ??#+###??????????????????????????????????????????? | | ?? +??????????????????????????????????????????? | | ??# #??????????????????????????????????????????? | +----------------------------------------------------+ Best States ------------- Heat Dissipation 125 Coolant Potential 120 Energy Generation 53 Energy Capacity 740 Matter Stores 343 Matter Capacity 450 Sight Range 22 Robot Scan Range 20 Terrain Scan Density 235 Jamming Range 16 Cloak Strength 3 Corruption Containment 24 Armor Coverage 900 Resistance: TH 30 Power Shielding 90 Utility Shielding 66 Weapon Cycling 20 Phase Shifting 10 Evasion (%) 63 Targeting Accuracy 12 Melee Accuracy 8 Target Analysis 8 Recoil Reduction 5 Particle Charging 20 Kinecelleration 30 Offensive Hacking 26 Defensive Hacking 14 Item Schematics ----------------- Exp. Heat Sink | -5/Zhirov | Free Assault Drone Bay | -5/Zhirov | Free Exp. Optical Array | -5/Zhirov | Free Imp. Arc Thrower | -5/Zhirov | Free Robot Schematics ------------------ None Fabricated ------------ T-07 Excavator | x2 | -5/Factory | Preloaded Assault Drone Bay | x1 | -4/Factory Shield Leg | x1 | -4/Factory | Preloaded Repaired ---------- Particle Gun | 69% | -10/Materials Alien Tech Used ----------------- Integrated Reactor Transdimensional Reconstructor Achievements -------------- None Challenges ------------ None Game ------ Seed PartitionTerrainTendrils Manual? 0 Play Time 01:46:16 Cumulative 1042.0 hours Start 2025.05.14 @ 19:46:55 End 2025.05.15 @ 16:04:52 Sessions 3 Manual Loads 0 Difficulty Rogue Special Mode None Game No. 1288 Rogue 1005 Adventurer 124 Explorer 159 Win Type 0 Total 46 Types 32/0/8/4/1/0/0/1/0/0 Lore% 91 Gallery% 85 Achievement% 80 Wizard Run 0 Options --------- Layout 0 ASCII 0 Keyboard 1 Movement Numpad Keybinds 0 Fullscreen 2 Font 18/X11 Map View 76x50 Zoom Use 0% Tactical HUD 1 Map Filters NONE Filters NONE Steam 1 RUN: 6258e056-9ad7-4f92-a164-98e5ccf76eca